lending/lending_fUSD_20240219
["ID","MTS","AMOUNT","RATE_DAILY","PERIOD"]
[314449356,1708361483943,-546.66012649,0.00046849,18]
[314449357,1708361483953,-528.01582371,0.00046849,18]
[314449358,1708361483964,-534.84,0.00046849,2]
[314449359,1708361483981,-500.0,0.00046849,18]
[314449360,1708361483991,-500.0,0.00046849,18]
[314449361,1708361484000,-526.07861405,0.00046849,18]
[314449362,1708361484010,-536.47635586,0.00046849,18]
[314449363,1708361484020,-500.0,0.00046849,18]
[314449364,1708361484029,-561.90906534,0.00046849,18]
[314449365,1708361484038,-500.0,0.00046849,18]
[314449366,1708361484049,-624.24375123,0.00046849,18]
[314449367,1708361484058,-281.79364501,0.00046849,18]
[314449368,1708361484068,-500.0,0.00046849,18]
[314449369,1708361484078,-205.76744437,0.00046849,18]
[314449370,1708361484087,-535.30332874,0.00046849,18]
[314449371,1708361484097,-542.2673877,0.00046849,18]
[314449372,1708361484107,-273.32948907,0.00046849,18]
[314449373,1708361484116,-529.35177294,0.00046849,18]
[314449374,1708361484126,-500.0,0.00046849,18]
[314449375,1708361484135,-550.54960169,0.00046849,18]
[314449376,1708361484145,-537.11703007,0.00046849,18]
[314449377,1708361484154,-500.0,0.00046849,18]
[314449378,1708361484164,-500.0,0.00046849,18]
[314449379,1708361484174,-524.24030111,0.00046849,18]
[314449380,1708361484184,-593.40765009,0.00046849,18]
[314449381,1708361484194,-500.0,0.00046849,18]
[314449382,1708361484203,-533.32907186,0.00046849,18]
[314449383,1708361484214,-500.0,0.00046849,18]
[314449384,1708361484226,-511.76678442,0.00046849,18]
[314449385,1708361484236,-500.0,0.00046849,18]
[314449386,1708361484245,-500.0,0.00046849,18]
[314449387,1708361484254,-532.51440703,0.00046849,18]
[314449388,1708361484264,-520.88655195,0.00046849,18]
[314449389,1708361484274,-519.9030405,0.00046849,18]
[314449390,1708361484283,-486.46802031,0.00046849,18]
[314449391,1708361484293,-529.94162537,0.00046849,18]
[314449392,1708361484303,-500.0,0.00046849,18]
[314449393,1708361484312,-500.0,0.00046849,18]
[314449394,1708361484322,-500.0,0.00046849,18]
[314449395,1708361484332,-1107.1,0.00046849,18]
[314449396,1708361484342,-500.0,0.00046849,18]
[314449397,1708361484352,-527.41010669,0.00046849,18]
[314449398,1708361484361,-513.68171017,0.00046849,18]
[314449399,1708361484371,-172.23593723,0.00046849,18]
[314449400,1708361484380,-500.0,0.00046849,18]
[314449401,1708361484390,-500.0,0.00046849,18]
[314449402,1708361484400,-500.0,0.00046849,18]
[314449403,1708361484410,-637.07446133,0.00046849,18]
[314449404,1708361484420,-558.67152308,0.00046849,18]
[314449405,1708361484430,-500.0,0.00046849,18]
[314449406,1708361484440,-500.0,0.00046849,18]
[314449407,1708361484450,-500.0,0.00046849,18]
[314449408,1708361484459,-500.0,0.00046849,18]
[314449409,1708361484468,-500.0,0.00046849,18]
[314449410,1708361484479,-500.0,0.00046849,18]
[314449411,1708361484489,-500.0,0.00046849,18]
[314449412,1708361484498,-544.33519178,0.00046849,18]
[314449413,1708361484508,-500.0,0.00046849,18]
[314449414,1708361484517,-500.0,0.00046849,18]
[314449415,1708361484527,-500.0,0.00046849,18]
[314449416,1708361484536,-500.0,0.00046849,18]
[314449417,1708361484546,-578.75729049,0.00046849,18]
[314449418,1708361484556,-500.0,0.00046849,18]
[314449419,1708361484565,-521.48525661,0.00046849,18]
[314449420,1708361484575,-240.10141539,0.00046849,18]
[314449421,1708361484584,-502.16278334,0.00046849,18]
[314449422,1708361484593,-500.0,0.00046849,18]
[314449423,1708361484603,-500.0,0.00046849,18]
[314449424,1708361484613,-500.0,0.00046849,18]
[314449425,1708361484622,-500.0,0.00046849,18]
[314449426,1708361484631,-500.0,0.00046849,18]
[314449427,1708361484641,-500.0,0.00046849,18]
[314449428,1708361484650,-530.43217817,0.00046849,18]
[314449429,1708361484660,-500.0,0.00046849,18]
[314449430,1708361484669,-500.0,0.00046849,18]
[314449431,1708361484678,-500.0,0.00046849,18]
[314449432,1708361484688,-500.0,0.00046849,18]
[314449433,1708361484697,-500.0,0.00046849,18]
[314449434,1708361484707,-561.26483186,0.00046849,18]
[314449435,1708361484716,-500.0,0.00046849,18]
[314449436,1708361484727,-500.0,0.00046849,18]
[314449437,1708361484736,-500.0,0.00046849,18]
[314449438,1708361484745,-542.20943125,0.00046849,18]
[314449439,1708361484755,-500.0,0.00046849,18]
[314449440,1708361484764,-517.83141611,0.00046849,18]
[314449441,1708361484774,-500.0,0.00046849,18]
[314449442,1708361484783,-500.0,0.00046849,18]
[314449443,1708361484793,-500.0,0.00046849,18]
[314449444,1708361484802,-552.00073153,0.00046849,18]
[314449445,1708361484811,-500.0,0.00046849,18]
[314449446,1708361484820,-500.0,0.00046849,18]
[314449447,1708361484830,-500.0,0.00046849,18]
[314449448,1708361484840,-500.0,0.00046849,18]
[314449449,1708361484849,-500.0,0.00046849,18]
[314449450,1708361484858,-532.46264712,0.00046849,18]
[314449451,1708361484867,-500.0,0.00046849,18]
[314449452,1708361484877,-500.0,0.00046849,18]
[314449453,1708361484886,-500.0,0.00046849,18]
[314449454,1708361484895,-500.0,0.00046849,18]
[314449455,1708361484905,-500.0,0.00046849,18]
[314449456,1708361484914,-500.0,0.00046849,18]
[314449457,1708361484924,-500.0,0.00046849,18]
[314449458,1708361484934,-500.0,0.00046849,18]
[314449459,1708361484943,-500.0,0.00046849,18]
[314449460,1708361484953,-500.0,0.00046849,18]
[314449461,1708361484962,-500.0,0.00046849,18]
[314449462,1708361484976,-500.0,0.00046849,18]
[314449463,1708361484986,-500.0,0.00046849,18]
[314449464,1708361484996,-500.0,0.00046849,18]
[314449465,1708361485006,-500.0,0.00046849,18]
[314449466,1708361485017,-500.0,0.00046849,18]
[314449467,1708361485027,-509.07659139,0.00046849,18]
[314449468,1708361485037,-170.84683067,0.00046849,18]
[314449469,1708361485047,-589.49682587,0.00046849,18]
[314449470,1708361485057,-500.0,0.00046849,18]
[314449471,1708361485068,-500.0,0.00046849,18]
[314449472,1708361485078,-510.45332909,0.00046849,18]
[314449473,1708361485088,-500.0,0.00046849,18]
[314449474,1708361485097,-549.44968952,0.00046849,18]
[314449475,1708361485107,-500.0,0.00046849,2]
[314449476,1708361485117,-500.0,0.00046849,18]
[314449477,1708361485127,-500.0,0.00046849,18]
[314449478,1708361485137,-500.0,0.00046849,18]
[314449479,1708361485149,-2448.33,0.00046849,2]
[314449480,1708361485159,-500.0,0.00046849,18]
[314449481,1708361485170,-500.0,0.00046849,18]
[314449482,1708361485181,-500.0,0.00046849,18]
[314449483,1708361485191,-500.0,0.00046849,18]
[314449484,1708361485201,-500.0,0.00046849,2]
[314449485,1708361485211,-500.0,0.00046849,18]
[314449486,1708361485222,-500.0,0.00046849,18]
[314449487,1708361485232,-515.36153088,0.00046849,18]
[314449488,1708361485243,-500.0,0.00046849,18]
[314449489,1708361485253,-500.0,0.00046849,18]
[314449490,1708361485262,-500.0,0.00046849,18]
[314449491,1708361485271,-482.0,0.00046849,18]
[314449492,1708361485281,-500.0,0.00046849,2]
[314449493,1708361485290,-500.0,0.00046849,18]
[314449494,1708361485299,-500.0,0.00046849,18]
[314449495,1708361485309,-500.0,0.00046849,18]
[314449496,1708361485319,-500.0,0.00046849,18]
[314449497,1708361485329,-500.0,0.00046849,18]
[314449498,1708361485338,-536.90935921,0.00046849,18]
[314449499,1708361485348,-500.0,0.00046849,18]
[314449500,1708361485358,-500.0,0.00046849,18]
[314449501,1708361485368,-500.0,0.00046849,18]
[314449502,1708361485378,-500.0,0.00046849,18]
[314449503,1708361485387,-549.80807573,0.00046849,18]
[314449504,1708361485397,-500.0,0.00046849,18]
[314449505,1708361485407,-535.48900165,0.00046849,18]
[314449506,1708361485416,-500.0,0.00046849,18]
[314449507,1708361485426,-500.0,0.00046849,18]
[314449508,1708361485436,-500.0,0.00046849,18]
[314449509,1708361485446,-1000.0,0.00046849,7]
[314449510,1708361485456,-540.8230259,0.00046849,18]
[314449511,1708361485466,-500.0,0.00046849,18]
[314449512,1708361485477,-500.0,0.00046849,18]
[314449513,1708361485487,-500.0,0.00046849,18]
[314449514,1708361485497,-500.0,0.00046849,18]
[314449515,1708361485508,-500.0,0.00046849,18]
[314449516,1708361485518,-500.0,0.00046849,18]
[314449517,1708361485527,-500.0,0.00046849,18]
[314449518,1708361485537,-500.0,0.00046849,18]
[314449519,1708361485546,-500.0,0.00046849,18]
[314449520,1708361485555,-500.0,0.00046849,18]
[314449521,1708361485564,-500.0,0.00046849,18]
[314449522,1708361485574,-500.0,0.00046849,18]
[314449523,1708361485584,-500.0,0.00046849,18]
[314449524,1708361485593,-500.0,0.00046849,18]
[314449525,1708361485602,-500.0,0.00046849,18]
[314449526,1708361485612,-528.82741457,0.00046849,18]
[314449527,1708361485621,-492.65980259,0.00046849,18]
[314449528,1708361485632,-500.0,0.00046849,18]
[314449529,1708361485642,-500.0,0.00046849,18]
[314449530,1708361485651,-500.0,0.00046849,18]
[314449531,1708361485661,-500.0,0.00046849,18]
[314449532,1708361485671,-500.0,0.00046849,18]
[314449533,1708361485681,-500.0,0.00046849,18]
[314449534,1708361485691,-1000.0,0.00046849,2]
[314449535,1708361485701,-500.0,0.00046849,18]
[314449536,1708361485710,-567.96880794,0.00046849,18]
[314449537,1708361485719,-500.0,0.00046849,18]
[314449538,1708361485729,-500.0,0.00046849,18]
[314449539,1708361485739,-500.0,0.00046849,18]
[314449540,1708361485748,-150.50981051,0.00046849,18]
[314449541,1708361485758,-500.0,0.00046849,18]
[314449542,1708361485768,-500.0,0.00046849,18]
[314449543,1708361485778,-500.0,0.00046849,18]
[314449544,1708361485787,-500.0,0.00046849,18]
[314449545,1708361485797,-500.0,0.00046849,18]
[314449546,1708361485806,-500.0,0.00046849,18]
[314449547,1708361485815,-500.0,0.00046849,18]
[314449548,1708361485824,-500.0,0.00046849,18]
[314449549,1708361485837,-500.0,0.00046849,18]
[314449550,1708361485847,-540.64132321,0.00046849,18]
[314449551,1708361485857,-500.0,0.00046849,18]
[314449552,1708361485867,-500.0,0.00046849,18]
[314449553,1708361485878,-500.0,0.00046849,18]
[314449554,1708361485887,-500.0,0.00046849,18]
[314449555,1708361485896,-500.0,0.00046849,18]
[314449556,1708361485906,-500.0,0.00046849,18]
[314449557,1708361485915,-500.0,0.00046849,18]
[314449558,1708361485925,-500.0,0.00046849,18]
[314449559,1708361485935,-500.0,0.00046849,18]
[314449560,1708361485944,-500.0,0.00046849,18]
[314449561,1708361485954,-512.8945022,0.00046849,18]
[314449562,1708361485963,-500.0,0.00046849,18]
[314449563,1708361485977,-500.0,0.00046849,18]
[314449564,1708361485987,-500.0,0.00046849,18]
[314449565,1708361485997,-572.17604135,0.00046849,18]
[314449566,1708361486007,-500.0,0.00046849,18]
[314449567,1708361486017,-516.31,0.00046849,18]
[314449568,1708361486027,-500.0,0.00046849,18]
[314449569,1708361486037,-500.0,0.00046849,18]
[314449570,1708361486048,-500.0,0.00046849,18]
[314449571,1708361486059,-500.0,0.00046849,18]
[314449572,1708361486069,-500.0,0.00046849,18]
[314449573,1708361486080,-500.0,0.00046849,18]
[314449574,1708361486091,-515.19357126,0.00046849,18]
[314449575,1708361486101,-500.0,0.00046849,18]
[314449576,1708361486114,-500.0,0.00046849,18]
[314449577,1708361486124,-1000.0,0.00046849,7]
[314449578,1708361486135,-485.0,0.00046849,18]
[314449579,1708361486146,-512.92716235,0.00046849,18]
[314449580,1708361486157,-500.0,0.00046849,18]
[314449581,1708361486168,-500.0,0.00046849,18]
[314449582,1708361486180,-150.0,0.00046849,18]
[314449583,1708361486191,-468.66214089,0.00046849,18]
[314449584,1708361486202,-500.0,0.00046849,18]
[314449585,1708361486213,-500.0,0.00046849,18]
[314449586,1708361486227,-500.0,0.00046849,18]
[314449587,1708361486239,-500.0,0.00046849,18]
[314449588,1708361486250,-500.0,0.00046849,18]
[314449589,1708361486260,-526.96301535,0.00046849,18]
[314449590,1708361486271,-500.0,0.00046849,18]
[314449591,1708361486282,-500.0,0.00046849,18]
[314449592,1708361486292,-500.0,0.00046849,18]
[314449593,1708361486302,-518.75939473,0.00046849,18]
[314449594,1708361486312,-500.0,0.00046849,18]
[314449595,1708361486322,-500.0,0.00046849,18]
[314449596,1708361486332,-500.0,0.00046849,18]
[314449597,1708361486342,-500.0,0.00046849,18]
[314449598,1708361486352,-530.01751345,0.00046849,18]
[314449599,1708361486362,-519.36247666,0.00046849,18]
[314449600,1708361486372,-500.0,0.00046849,18]
[314449601,1708361486382,-500.0,0.00046849,18]
[314449602,1708361486392,-500.0,0.00046849,18]
[314449603,1708361486402,-287.26648042,0.00046849,18]
[314449604,1708361486547,-410.38270641,0.00046849,18]
[314449605,1708361486560,-373.78719973,0.00046849,18]
[314449606,1708361486570,-500.0,0.00046849,18]
[314449607,1708361486580,-523.70257245,0.00046849,18]
[314449608,1708361486589,-500.0,0.00046849,18]
[314449609,1708361486599,-515.56542572,0.00046849,18]
[314449610,1708361486609,-500.0,0.00046849,18]
[314449611,1708361486618,-526.86294172,0.00046849,18]
[314449612,1708361486628,-500.0,0.00046849,18]
[314449613,1708361486638,-522.87331086,0.00046849,18]
[314449614,1708361486648,-500.0,0.00046849,18]
[314449615,1708361486658,-514.73553914,0.00046849,18]
[314449616,1708361486668,-500.0,0.00046849,18]
[314449617,1708361486678,-1000.0,0.00046849,7]
[314449618,1708361486688,-510.54742032,0.00046849,18]
[314449619,1708361486697,-500.0,0.00046849,18]
[314449620,1708361486708,-500.0,0.00046849,18]
[314449621,1708361486717,-536.50431742,0.00046849,18]
[314449622,1708361486729,-545.58664631,0.00046849,18]
[314449623,1708361486738,-500.0,0.00046849,18]
[314449624,1708361486748,-500.0,0.00046849,18]
[314449625,1708361486759,-500.0,0.00046849,18]
[314449626,1708361486769,-500.0,0.00046849,18]
[314449627,1708361486780,-500.0,0.00046849,18]
[314449628,1708361486790,-514.33859693,0.00046849,18]
[314449629,1708361486800,-500.0,0.00046849,18]
[314449630,1708361486809,-514.80181595,0.00046849,18]
[314449631,1708361486819,-500.0,0.00046849,18]
[314449632,1708361486829,-500.0,0.00046849,18]
[314449633,1708361486838,-500.0,0.00046849,18]
[314449634,1708361486848,-514.00320326,0.00046849,18]
[314449635,1708361486858,-1000.0,0.00046849,10]
[314449636,1708361486868,-500.0,0.00046849,18]
[314449637,1708361486878,-500.0,0.00046849,18]
[314449638,1708361486888,-500.0,0.00046849,18]
[314449639,1708361486898,-339.64868791,0.00046849,18]
[314449640,1708361486908,-500.0,0.00046849,18]
[314449641,1708361486919,-500.0,0.00046849,18]
[314449642,1708361486929,-500.0,0.00046849,18]
[314449643,1708361486940,-500.0,0.00046849,18]
[314449644,1708361486950,-575.63191987,0.00046849,18]
[314449645,1708361486960,-500.0,0.00046849,18]
[314449646,1708361486974,-500.0,0.00046849,18]
[314449647,1708361486983,-669.08,0.00046849,18]
[314449648,1708361486993,-523.95514893,0.00046849,18]
[314449649,1708361487003,-500.0,0.00046849,18]
[314449650,1708361487014,-504.91164602,0.00046849,18]
[314449651,1708361487024,-500.0,0.00046849,18]
[314449652,1708361487034,-527.17,0.00046849,18]
[314449653,1708361487045,-500.0,0.00046849,18]
[314449654,1708361487054,-500.0,0.00046849,18]
[314449655,1708361487064,-509.30167283,0.00046849,18]
[314449656,1708361487074,-500.0,0.00046849,18]
[314449657,1708361487084,-500.0,0.00046849,18]
[314449658,1708361487093,-500.0,0.00046849,18]
[314449659,1708361487103,-500.0,0.00046849,18]
[314449660,1708361487112,-515.93880337,0.00046849,18]
[314449661,1708361487124,-500.0,0.00046849,18]
[314449662,1708361487134,-500.0,0.00046849,18]
[314449663,1708361487144,-513.35418637,0.00046849,18]
[314449664,1708361487154,-517.69555395,0.00046849,18]
[314449665,1708361487163,-500.0,0.00046849,18]
[314449666,1708361487174,-500.0,0.00046849,18]
[314449667,1708361487184,-546.3442602,0.00046849,18]
[314449668,1708361487194,-500.0,0.00046849,18]
[314449669,1708361487203,-500.0,0.00046849,18]
[314449670,1708361487213,-500.0,0.00046849,18]
[314449671,1708361487223,-513.42869138,0.00046849,18]
[314449672,1708361487233,-500.0,0.00046849,18]
[314449673,1708361487242,-500.0,0.00046849,18]
[314449674,1708361487251,-500.0,0.00046849,18]
[314449675,1708361487261,-863.62,0.00046849,2]
[314449676,1708361487271,-532.92722632,0.00046849,18]
[314449677,1708361487281,-500.0,0.00046849,18]
[314449678,1708361487291,-500.0,0.00046849,18]
[314449679,1708361487300,-515.60581504,0.00046849,18]
[314449680,1708361487310,-500.0,0.00046849,18]
[314449681,1708361487325,-500.0,0.00046849,18]
[314449682,1708361487336,-500.0,0.00046849,18]
[314449683,1708361487346,-257.94211073,0.00046849,18]
[314449684,1708361487356,-500.0,0.00046849,18]
[314449685,1708361487367,-514.61490736,0.00046849,18]
[314449686,1708361487377,-500.0,0.00046849,18]
[314449687,1708361487386,-538.31470707,0.00046849,18]
[314449688,1708361487395,-531.92187817,0.00046849,18]
[314449689,1708361487405,-500.0,0.00046849,18]
[314449690,1708361487414,-500.0,0.00046849,18]
[314449691,1708361487424,-500.0,0.00046849,18]
[314449692,1708361487433,-357.68991444,0.00046849,18]
[314449693,1708361487443,-500.0,0.00046849,18]
[314449694,1708361487452,-500.0,0.00046849,18]
[314449695,1708361487462,-530.85307999,0.00046849,18]
[314449696,1708361487473,-500.0,0.00046849,18]
[314449697,1708361487483,-518.64336753,0.00046849,18]
[314449698,1708361487493,-500.0,0.00046849,18]
[314449699,1708361487503,-500.0,0.00046849,18]
[314449700,1708361487512,-524.16376944,0.00046849,18]
[314449701,1708361487522,-500.0,0.00046849,18]
[314449702,1708361487532,-550.01580559,0.00046849,18]
[314449703,1708361487541,-500.0,0.00046849,18]
[314449704,1708361487551,-500.0,0.00046849,18]
[314449705,1708361487560,-527.15150233,0.00046849,18]
[314449706,1708361487570,-512.97734532,0.00046849,18]
[314449707,1708361487580,-500.0,0.00046849,18]
[314449708,1708361487590,-512.24874102,0.00046849,18]
[314449709,1708361487600,-500.0,0.00046849,18]
[314449710,1708361487609,-570.5251264,0.00046849,18]
[314449711,1708361487619,-551.17789211,0.00046849,18]
[314449712,1708361487628,-500.0,0.00046849,18]
[314449713,1708361487638,-500.0,0.00046849,18]
[314449714,1708361487647,-500.0,0.00046849,18]
[314449715,1708361487657,-500.0,0.00046849,18]
[314449716,1708361487667,-574.16894099,0.00046849,18]
[314449717,1708361487677,-500.0,0.00046849,2]
[314449718,1708361487686,-500.0,0.00046849,18]
[314449719,1708361487696,-500.0,0.00046849,18]
[314449720,1708361487705,-589.29551473,0.00046849,18]
[314449721,1708361487714,-500.0,0.00046849,18]
[314449722,1708361487726,-500.0,0.00046849,18]
[314449723,1708361487735,-544.23559561,0.00046849,18]
[314449724,1708361487745,-500.0,0.00046849,18]
[314449725,1708361487754,-507.08023658,0.00046849,18]
[314449726,1708361487763,-571.9,0.00046849,18]
[314449727,1708361487773,-500.0,0.00046849,18]
[314449728,1708361487782,-503.74843361,0.00046849,18]
[314449729,1708361487791,-500.0,0.00046849,18]
[314449730,1708361487801,-536.21216626,0.00046849,18]
[314449731,1708361487811,-500.0,0.00046849,18]
[314449732,1708361487821,-500.0,0.00046849,18]
[314449733,1708361487830,-541.69982785,0.00046849,18]
[314449734,1708361487841,-500.0,0.00046849,18]
[314449735,1708361487851,-515.14454377,0.00046849,18]
[314449736,1708361487861,-500.0,0.00046849,18]
[314449737,1708361487870,-532.91273939,0.00046849,18]
[314449738,1708361487880,-232.65059294,0.00046849,7]
[314449739,1708361487890,-540.25633309,0.00046849,18]
[314449740,1708361487899,-527.04266756,0.00046849,18]
[314449741,1708361487910,-500.0,0.00046849,18]
[314449742,1708361487920,-500.0,0.00046849,18]
[314449743,1708361487930,-353.20014408,0.00046849,18]
[314449744,1708361487942,-528.49031181,0.00046849,18]
[314449745,1708361487952,-500.0,0.00046849,18]
[314449746,1708361487961,-500.0,0.00046849,18]
[314449747,1708361487975,-500.0,0.00046849,18]
[314449748,1708361487985,-500.0,0.00046849,18]
[314449749,1708361487995,-500.0,0.00046849,18]
[314449750,1708361488006,-500.0,0.00046849,18]
[314449751,1708361488017,-520.2023368,0.00046849,18]
[314449752,1708361488027,-500.0,0.00046849,18]
[314449753,1708361488037,-500.0,0.00046849,18]
[314449754,1708361488047,-525.26997206,0.00046849,18]
[314449755,1708361488057,-500.0,0.00046849,18]
[314449756,1708361488067,-500.0,0.00046849,18]
[314449757,1708361488077,-544.61171422,0.00046849,18]
[314449758,1708361488087,-500.0,0.00046849,18]
[314449759,1708361488098,-500.0,0.00046849,18]
[314449760,1708361488108,-500.0,0.00046849,18]
[314449761,1708361488117,-500.0,0.00046849,18]
[314449762,1708361488127,-539.33515832,0.00046849,18]
[314449763,1708361488137,-500.0,0.00046849,18]
[314449764,1708361488147,-495.0,0.00046849,18]
[314449765,1708361488158,-500.0,0.00046849,18]
[314449766,1708361488168,-500.0,0.00046849,18]
[314449767,1708361488178,-500.0,0.00046849,18]
[314449768,1708361488188,-664.1,0.00046849,18]
[314449769,1708361488198,-500.0,0.00046849,18]
[314449770,1708361488208,-500.0,0.00046849,18]
[314449771,1708361488218,-500.0,0.00046849,18]
[314449772,1708361488231,-500.0,0.00046849,18]
[314449773,1708361488241,-500.0,0.00046849,18]
[314449774,1708361488251,-500.0,0.00046849,18]
[314449775,1708361488261,-500.0,0.00046849,18]
[314449776,1708361488271,-517.76044973,0.00046849,18]
[314449777,1708361488281,-500.0,0.00046849,18]
[314449778,1708361488290,-1317.88,0.00046849,18]
[314449779,1708361488299,-500.04323787,0.00046849,18]
[314449780,1708361488309,-500.0,0.00046849,18]
[314449781,1708361488319,-500.0,0.00046849,18]
[314449782,1708361488329,-500.0,0.00046849,18]
[314449783,1708361488339,-500.0,0.00046849,18]
[314449784,1708361488348,-500.0,0.00046849,18]
[314449785,1708361488358,-500.0,0.00046849,18]
[314449786,1708361488367,-500.0,0.00046849,18]
[314449787,1708361488377,-500.0,0.00046849,18]
[314449788,1708361488386,-500.0,0.00046849,18]
[314449789,1708361488396,-500.0,0.00046849,18]
[314449790,1708361488406,-500.0,0.00046849,18]
[314449791,1708361488415,-500.0,0.00046849,18]
[314449792,1708361488425,-500.0,0.00046849,18]
[314449793,1708361488434,-500.0,0.00046849,18]
[314449794,1708361488444,-534.98052037,0.00046849,18]
[314449795,1708361488455,-500.0,0.00046849,18]
[314449796,1708361488465,-500.0,0.00046849,18]
[314449797,1708361488477,-500.0,0.00046849,18]
[314449798,1708361488486,-558.25872255,0.00046849,18]
[314449799,1708361488497,-500.0,0.00046849,18]
[314449800,1708361488507,-500.0,0.00046849,18]
[314449801,1708361488517,-586.84757811,0.00046849,18]
[314449802,1708361488527,-500.0,0.00046849,18]
[314449803,1708361488536,-500.0,0.00046849,18]
[314449804,1708361488545,-520.21911293,0.00046849,18]
[314449805,1708361488555,-500.0,0.00046849,18]
[314449806,1708361488564,-500.0,0.00046849,18]
[314449807,1708361488574,-509.49872688,0.00046849,18]
[314449808,1708361488583,-500.0,0.00046849,18]
[314449809,1708361488593,-1430.78,0.00046849,18]
[314449810,1708361488602,-500.0,0.00046849,18]
[314449811,1708361488611,-500.0,0.00046849,18]
[314449812,1708361488620,-500.0,0.00046849,18]
[314449813,1708361488630,-572.30472633,0.00046849,18]
[314449814,1708361488640,-500.0,0.00046849,18]
[314449815,1708361488650,-500.0,0.00046849,18]
[314449816,1708361488660,-500.0,0.00046849,18]
[314449817,1708361488669,-500.0,0.00046849,18]
[314449818,1708361488679,-500.0,0.00046849,18]
[314449819,1708361488689,-701.42,0.00046849,18]
[314449820,1708361488700,-461.23573633,0.00046849,18]
[314449821,1708361488709,-500.0,0.00046849,18]
[314449822,1708361488724,-500.0,0.00046849,2]
[314449823,1708361488734,-500.0,0.00046849,18]
[314449824,1708361488746,-500.0,0.00046849,18]
[314449825,1708361488756,-500.0,0.00046849,18]
[314449826,1708361488766,-761.63,0.00046849,18]
[314449827,1708361488776,-500.0,0.00046849,18]
[314449828,1708361488786,-500.0,0.00046849,18]
[314449829,1708361488796,-500.0,0.00046849,18]
[314449830,1708361488806,-500.0,0.00046849,18]
[314449831,1708361488815,-500.0,0.00046849,18]
[314449832,1708361488825,-500.0,0.00046849,18]
[314449833,1708361488836,-504.61218944,0.00046849,18]
[314449834,1708361488846,-500.0,0.00046849,18]
[314449835,1708361488856,-500.0,0.00046849,18]
[314449836,1708361488866,-500.0,0.00046849,18]
[314449837,1708361488876,-500.0,0.00046849,18]
[314449838,1708361488886,-500.0,0.00046849,18]
[314449839,1708361488896,-512.01092622,0.00046849,18]
[314449840,1708361488906,-552.88,0.00046849,18]
[314449841,1708361488916,-500.0,0.00046849,18]
[314449842,1708361488926,-500.0,0.00046849,18]
[314449843,1708361488938,-721.95,0.00046849,18]
[314449844,1708361488947,-500.0,0.00046849,18]
[314449845,1708361489079,-500.0,0.00046849,18]
[314449846,1708361489104,-517.49122853,0.00046849,18]
[314449847,1708361489115,-500.0,0.00046849,18]
[314449848,1708361489124,-1276.36,0.00046849,18]
[314449849,1708361489135,-516.8368569,0.00046849,18]
[314449850,1708361489145,-374.84486631,0.00046849,18]
[314449851,1708361489155,-500.0,0.00046849,18]
[314449852,1708361489165,-693.07,0.00046849,18]
[314449853,1708361489175,-524.76489703,0.00046849,18]
[314449854,1708361489186,-500.0,0.00046849,18]
[314449855,1708361489195,-500.0,0.00046849,18]